lending/lending_fUSD_20251107
["ID","MTS","AMOUNT","RATE_DAILY","PERIOD"]
[393358627,1762522237873,-151.0,0.0001739,2]
[393358628,1762522237882,-151.0,0.0001739,2]
[393358629,1762522237892,-151.0,0.0001739,2]
[393358630,1762522237901,-151.0,0.0001739,2]
[393358631,1762522237910,-151.0,0.0001739,2]
[393358632,1762522237919,-151.0,0.0001739,2]
[393358633,1762522237929,-151.0,0.0001739,2]
[393358634,1762522237938,-500.0,0.0001739,2]
[393358635,1762522238144,-500.0,0.0001739,2]
[393358636,1762522238155,-151.0,0.0001739,2]
[393358637,1762522238166,-500.0,0.0001739,2]
[393358638,1762522238175,-151.0,0.0001739,2]
[393358639,1762522238185,-151.0,0.0001739,2]
[393358640,1762522238195,-500.0,0.0001739,2]
[393358641,1762522238205,-313.40543479,0.0001739,2]
[393358642,1762522238214,-239.75520452,0.0001739,2]
[393358643,1762522238224,-151.0,0.0001739,2]
[393358644,1762522238234,-151.0,0.0001739,2]
[393358645,1762522238244,-500.0,0.0001739,2]
[393358646,1762522238254,-151.0,0.0001739,2]
[393358647,1762522238264,-151.0,0.0001739,2]
[393358648,1762522238273,-500.0,0.0001739,2]
[393358649,1762522238283,-151.0,0.0001739,2]
[393358650,1762522238292,-500.0,0.0001739,2]
[393358651,1762522238301,-151.0,0.0001739,2]
[393358652,1762522238311,-555.973062,0.0001739,2]
[393358653,1762522238320,-151.0,0.0001739,2]
[393358654,1762522238330,-151.0,0.0001739,2]
[393358655,1762522238339,-151.0,0.0001739,2]
[393358656,1762522238349,-151.0,0.0001739,2]
[393358657,1762522238358,-151.0,0.0001739,2]
[393358658,1762522238367,-151.0,0.0001739,2]
[393358659,1762522238377,-151.0,0.0001739,2]
[393358660,1762522238387,-151.0,0.0001739,2]
[393358661,1762522238396,-520.8648782,0.0001739,2]
[393358662,1762522238405,-151.0,0.0001739,2]
[393358663,1762522238415,-151.0,0.0001739,2]
[393358664,1762522238425,-151.0,0.0001739,2]
[393358665,1762522238434,-151.0,0.0001739,2]
[393358666,1762522238447,-151.0,0.0001739,2]
[393358667,1762522238457,-151.0,0.0001739,2]
[393358668,1762522238468,-151.0,0.0001739,2]
[393358669,1762522238478,-151.0,0.0001739,2]
[393358670,1762522238488,-151.0,0.0001739,2]
[393358671,1762522238497,-151.0,0.0001739,2]
[393358672,1762522238507,-151.0,0.0001739,2]
[393358673,1762522238518,-151.0,0.0001739,2]
[393358674,1762522238528,-151.0,0.0001739,2]
[393358675,1762522238537,-151.0,0.0001739,2]
[393358676,1762522238547,-151.0,0.0001739,2]
[393358677,1762522238557,-151.0,0.0001739,2]
[393358678,1762522238566,-515.46,0.0001739,2]
[393358679,1762522238576,-500.0,0.0001739,2]
[393358680,1762522238586,-150.0,0.0001739,2]
[393358681,1762522238595,-150.0,0.0001739,2]
[393358682,1762522238605,-150.0,0.0001739,2]
[393358683,1762522238615,-500.0,0.0001739,2]
[393358684,1762522238625,-150.0,0.0001739,2]
[393358685,1762522238634,-150.0,0.0001739,2]
[393358686,1762522238644,-500.0,0.0001739,2]
[393358687,1762522238654,-150.0,0.0001739,2]
[393358688,1762522238663,-150.0,0.0001739,2]
[393358689,1762522238673,-150.0,0.0001739,2]
[393358690,1762522238682,-500.0,0.0001739,2]
[393358691,1762522238691,-500.0,0.0001739,2]
[393358692,1762522238700,-150.0,0.0001739,2]
[393358693,1762522238710,-150.0,0.0001739,2]
[393358694,1762522238720,-500.0,0.0001739,2]
[393358695,1762522238729,-500.0,0.0001739,2]
[393358696,1762522238738,-674.0,0.0001739,2]
[393358697,1762522238748,-150.0,0.0001739,2]
[393358698,1762522238757,-150.0,0.0001739,2]
[393358699,1762522238766,-500.0,0.0001739,2]
[393358700,1762522238776,-160.0,0.0001739,2]
[393358701,1762522238785,-481.46948166,0.00017393,2]
[393358702,1762522238794,-151.0,0.00017397,2]
[393358703,1762522238807,-500.0,0.00017399,2]
[393358704,1762522238816,-500.0,0.00017399,2]
[393358705,1762522238826,-224.33769493,0.00017399,2]
[393358706,1762522238836,-500.0,0.00017399,2]
[393358707,1762522238846,-500.0,0.00017399,2]
[393358708,1762522238856,-259.78032375,0.00017399,2]
[393358709,1762522238866,-500.0,0.00017399,2]
[393358710,1762522238876,-500.0,0.00017399,2]
[393358711,1762522238886,-500.0,0.00017399,2]
[393358712,1762522238896,-150.0,0.00017399,2]
[393358713,1762522238906,-158.10520821,0.00017399,2]
[393358714,1762522238916,-150.0,0.00017399,2]
[393358715,1762522238925,-150.0,0.00017399,2]
[393358716,1762522238935,-500.0,0.00017399,2]
[393358717,1762522238945,-155.73974734,0.00017399,2]
[393358718,1762522238956,-150.0,0.00017399,2]
[393358719,1762522238965,-150.0,0.00017399,2]
[393358720,1762522238976,-472.45708729,0.00017399,2]
[393358721,1762522238986,-178.49015745,0.00017399,2]
[393358722,1762522239000,-500.0,0.00017399,2]
[393358723,1762522239010,-365.61239599,0.00017399,2]
[393358724,1762522239020,-500.0,0.00017399,2]
[393358725,1762522239031,-256.66566764,0.00017399,2]
[393358726,1762522239041,-500.0,0.00017399,2]
[393358727,1762522239051,-500.0,0.00017399,2]
[393358728,1762522239062,-500.0,0.00017399,2]
[393358729,1762522239071,-515.63484931,0.00017399,2]
[393358730,1762522239082,-530.67245019,0.00017399,2]
[393358731,1762522239093,-500.0,0.00017399,2]
[393358732,1762522239104,-1000.0,0.000174,2]
[393358733,1762522239115,-18330.5694,0.000174,2]
[393358734,1762522239125,-420000.0,0.000174,2]
[393358735,1762522239135,-1472.31101486,0.000174,2]
[393358736,1762522239146,-374.81,0.00017408,2]
[393358737,1762522239156,-8044.32462777,0.00017441,2]
[393358738,1762522239166,-284.0,0.00017442,2]
[393358739,1762522239176,-235.12,0.00017446,2]
[393358740,1762522239186,-500.0,0.00017473,2]
[393358741,1762522239200,-500.0,0.00017473,2]
[393358742,1762522239214,-500.0,0.00017473,2]
[393358743,1762522239224,-501.13371808,0.00017473,2]
[393358744,1762522239235,-500.0,0.00017473,2]
[393358745,1762522239245,-500.0,0.00017473,2]
[393358746,1762522239256,-465.14690898,0.00017473,2]
[393358747,1762522239267,-500.77100973,0.00017473,2]
[393358748,1762522239277,-500.0,0.00017473,2]
[393358749,1762522239287,-500.0,0.00017473,2]
[393358750,1762522239297,-500.0,0.00017473,2]
[393358751,1762522239308,-500.0,0.00017473,2]
[393358752,1762522239317,-500.0,0.00017473,2]
[393358753,1762522239327,-500.0,0.00017473,2]
[393358754,1762522239337,-500.2462784,0.00017473,2]
[393358755,1762522239346,-500.0,0.00017473,2]
[393358756,1762522239355,-505.50862562,0.00017473,2]
[393358757,1762522239365,-500.0,0.00017473,2]
[393358758,1762522239375,-500.0,0.00017473,2]
[393358759,1762522239388,-500.0,0.00017473,2]
[393358760,1762522239397,-500.0,0.00017473,2]
[393358761,1762522239407,-500.0935881,0.00017473,2]
[393358762,1762522239417,-500.0,0.00017473,2]
[393358763,1762522239430,-500.0,0.00017473,2]
[393358764,1762522239440,-500.0,0.00017473,2]
[393358765,1762522239450,-162.42661028,0.00017473,2]
[393358766,1762522239461,-158.19215752,0.00017473,2]
[393358767,1762522239471,-500.0,0.00017473,2]
[393358768,1762522239480,-500.0,0.00017473,2]
[393358769,1762522239490,-481.46948166,0.00017477,2]
[393358770,1762522239499,-161.9975394,0.00017497,2]
[393358771,1762522239510,-578.81216164,0.00017499,2]
[393358772,1762522239521,-360241.55121486,0.000175,2]
[393358773,1762522239530,-800.29344871,0.000175,2]
[393358774,1762522239540,-8044.32462777,0.00017507,2]
[393358775,1762522239549,-500.0,0.00017527,2]
[393358777,1762522239559,-234.06701824,0.00017527,2]
[393358778,1762522239569,-450.0,0.00017527,2]
[393358779,1762522239579,-500.0,0.00017527,2]
[393358780,1762522239592,-150.0,0.00017527,2]
[393358781,1762522239601,-500.0,0.00017527,2]
[393358782,1762522239611,-500.0,0.00017527,2]
[393358784,1762522239620,-150.0,0.00017527,2]
[393358785,1762522239630,-500.0,0.00017527,2]
[393358786,1762522239639,-500.0,0.00017527,2]
[393358787,1762522239649,-674.0,0.00017527,2]
[393358788,1762522239658,-150.0,0.00017527,2]
[393358789,1762522239668,-150.0,0.00017527,2]
[393358790,1762522239678,-500.0,0.00017527,2]
[393358791,1762522239688,-270.95215059,0.00017536,2]
[393358792,1762522239698,-500.0,0.00017536,2]
[393358793,1762522239708,-150.0,0.00017536,2]
[393358794,1762522239717,-481.46948166,0.00017562,2]
[393358795,1762522239727,-8044.32462777,0.00017572,2]
[393358796,1762522239736,-893.7197719,0.000176,2]
[393358797,1762522239746,-287.0,0.0001761,2]
[393358798,1762522239756,-8044.32462777,0.00017638,2]
[393358799,1762522239765,-481.46948166,0.00017646,2]
[393358801,1762522239775,-1472.31101486,0.0001765,2]
[393358803,1762522239787,-150.0,0.00017658,2]
[393358805,1762522239796,-500.0,0.00017658,2]
[393358807,1762522239807,-500.0,0.00017658,2]
[393358809,1762522239817,-150.0,0.00017658,2]
[393358811,1762522239828,-500.0,0.00017658,2]
[393358813,1762522239838,-500.0,0.00017658,2]
[393358815,1762522239848,-150.0,0.00017658,2]
[393358817,1762522239858,-150.0,0.00017658,2]
[393358819,1762522239868,-500.0,0.00017658,2]
[393358822,1762522239878,-500.0,0.00017658,2]
[393358824,1762522239888,-551.0,0.00017658,2]
[393358826,1762522239899,-500.0,0.00017664,2]
[393358828,1762522239908,-300.0,0.00017664,2]
[393358830,1762522239918,-500.0,0.00017664,2]
[393358831,1762522239927,-409.45484298,0.00017664,2]
[393358832,1762522239937,-154.5547493,0.00017664,2]
[393358833,1762522239947,-200.08208835,0.00017664,2]
[393358834,1762522239958,-500.0,0.00017664,2]
[393358835,1762522239967,-674.0,0.00017664,2]
[393358836,1762522239976,-213.28175054,0.00017664,2]
[393358837,1762522239986,-150.0,0.00017664,2]
[393358838,1762522239996,-500.0,0.00017664,2]
[393358839,1762522240005,-515.46,0.00017664,2]
[393358840,1762522240015,-168.24179502,0.00017673,2]
[393358841,1762522240024,-150.0,0.00017673,2]
[393358842,1762522240034,-318.06,0.00017694,2]
[393358843,1762522240043,-8044.32462777,0.00017703,2]
[393358844,1762522240053,-5000.0,0.0001773,2]
[393358845,1762522240063,-481.46948166,0.00017731,2]
[393358846,1762522240073,-8044.32462777,0.00017769,2]
[393358847,1762522240083,-500.0,0.00017789,2]
[393358848,1762522240092,-150.0,0.00017789,2]
[393358849,1762522240102,-500.0,0.00017789,2]
[393358850,1762522240111,-500.0,0.00017789,2]
[393358852,1762522240121,-500.0,0.00017789,2]
[393358854,1762522240130,-500.0,0.00017789,2]
[393358856,1762522240139,-500.0,0.00017789,2]
[393358858,1762522240149,-500.0,0.00017789,2]
[393358860,1762522240158,-500.0,0.00017789,2]
[393358862,1762522240167,-500.0,0.00017789,2]
[393358864,1762522240185,-500.0,0.00017789,2]
[393358867,1762522240198,-500.0,0.00017789,2]
[393358869,1762522240209,-168.34614064,0.00017789,2]
[393358870,1762522240219,-500.0,0.00017789,2]
[393358871,1762522240229,-150.0,0.00017795,2]
[393358872,1762522240238,-500.0,0.00017795,2]
[393358873,1762522240248,-500.0,0.00017795,2]
[393358874,1762522240258,-500.0,0.00017795,2]
[393358875,1762522240268,-500.0,0.00017795,2]
[393358876,1762522240278,-500.0,0.00017795,2]
[393358877,1762522240288,-500.0,0.00017795,2]
[393358878,1762522240298,-551.0,0.00017795,2]
[393358879,1762522240307,-2404.43947089,0.000178,2]
[393358880,1762522240317,-1000.0,0.000178,2]
[393358881,1762522240328,-373.72728903,0.00017801,2]
[393358882,1762522240337,-500.0,0.00017801,2]
[393358883,1762522240347,-500.0,0.00017801,2]
[393358884,1762522240356,-674.0,0.00017801,2]
[393358885,1762522240366,-181.37299051,0.00017801,2]
[393358886,1762522240376,-500.0,0.00017808,2]
[393358887,1762522240385,-207.27976634,0.0001781,2]
[393358888,1762522240395,-481.46948166,0.00017815,2]
[393358889,1762522240404,-500.0,0.00017829,2]
[393358890,1762522240413,-500.0,0.00017829,2]
[393358891,1762522240424,-500.0,0.00017829,2]
[393358892,1762522240435,-996.52,0.0001783,2]
[393358893,1762522240446,-1765.03368788,0.0001783,2]
[393358894,1762522240458,-318.06,0.00017831,2]
[393358895,1762522240470,-8044.32462777,0.00017834,2]
[393358896,1762522240481,-200.0,0.00017856,2]
[393358897,1762522240490,-3004.0,0.00017867,2]
[393358898,1762522240500,-513.15690725,0.000179,2]
[393358899,1762522240512,-1297.68906116,0.000179,2]
[393358900,1762522240522,-8044.32462777,0.000179,2]
[393358901,1762522240532,-253.02953198,0.000179,2]
[393358902,1762522240542,-481.46948166,0.000179,2]
[393358903,1762522240551,-1472.31101486,0.000179,2]
[393358904,1762522240560,-1000.0,0.000179,2]
[393358905,1762522240570,-462.43103622,0.000179,2]
[393358906,1762522240580,-1046.71084981,0.00017921,2]
[393358907,1762522240589,-1000.0,0.00017921,2]
[393358908,1762522240600,-1000.0,0.00017921,2]
[393358909,1762522240610,-648.2935781,0.00017921,2]
[393358910,1762522240619,-500.0,0.00017921,2]
[393358911,1762522240629,-1000.0,0.00017921,2]
[393358912,1762522240639,-170.18333266,0.00017921,2]
[393358913,1762522240649,-1007.55313772,0.00017921,2]
[393358914,1762522240659,-500.0,0.00017921,2]
[393358915,1762522240669,-1000.0,0.00017921,2]
[393358916,1762522240678,-500.0,0.00017921,2]
[393358917,1762522240688,-635.77051641,0.00017921,2]
[393358918,1762522240698,-1000.0,0.00017921,2]
[393358919,1762522240710,-604.60451121,0.00017926,2]
[393358920,1762522240720,-500.0,0.00017926,2]
[393358921,1762522240729,-156.32912669,0.00017932,2]
[393358922,1762522240739,-258.98498589,0.00017932,2]
[393358923,1762522240748,-256.55778374,0.00017932,2]
[393358924,1762522240758,-500.0,0.00017932,2]
[393358925,1762522240768,-500.0,0.00017932,2]
[393358926,1762522240777,-500.0,0.00017932,2]
[393358927,1762522240787,-322.70415926,0.00017932,2]
[393358928,1762522240797,-551.0,0.00017932,2]
[393358929,1762522240807,-500.0,0.00017938,2]
[393358930,1762522240816,-500.0,0.00017938,2]
[393358931,1762522240825,-674.0,0.00017938,2]
[393358932,1762522240834,-515.46,0.00017938,2]
[393358933,1762522240843,-500.0,0.00017945,2]
[393358934,1762522240852,-184.0,0.00017973,2]
[393358935,1762522240861,-510.5905813,0.00017973,2]
[393358936,1762522240871,-500.0,0.00017973,2]
[393358937,1762522240880,-500.0,0.00017973,2]
[393358938,1762522240890,-500.0,0.00017973,2]
[393358939,1762522240899,-501.02087707,0.00017973,2]
[393358940,1762522240909,-500.0,0.00017973,2]
[393358941,1762522240918,-160.00494127,0.00017973,2]
[393358942,1762522240928,-500.0,0.00017973,2]
[393358943,1762522240938,-1000.0,0.00017988,2]
[393358944,1762522240946,-1000.0,0.00017988,2]
[393358945,1762522240957,-1000.0,0.00017988,2]
[393358946,1762522240967,-1000.0,0.00017988,2]
[393358947,1762522240976,-1000.0,0.00017988,2]
[393358948,1762522240986,-1000.0,0.00017988,2]
[393358949,1762522240995,-1000.0,0.00017988,2]
[393358950,1762522241005,-1000.0,0.00017988,2]
[393358951,1762522241014,-1000.0,0.00017988,2]
[393358952,1762522241023,-1000.0,0.00017988,2]
[393358953,1762522241033,-1000.0,0.00017988,2]
[393358954,1762522241042,-1000.0,0.00017988,2]
[393358955,1762522241052,-154.047,0.00017988,2]
[393358956,1762522241061,-181.52688355,0.00017989,2]
[393358957,1762522241071,-297.41460461,0.0001799,2]
[393358958,1762522241080,-300.0,0.00017999,2]
[393358959,1762522241089,-505.03645797,0.00017999,2]
[393358960,1762522241098,-300.0,0.00017999,2]
[393358961,1762522241108,-300.0,0.00017999,2]
[393358962,1762522241117,-994488.51276595,0.00018,2]
[393358963,1762522241350,-2230.543,0.00018,2]
[393358964,1762522241376,-500.0,0.00017801,2]
[393358965,1762522241387,-11.53158728,0.00018,2]
[393358966,1762522241430,-1097.0,0.00018,2]
[393358967,1762522241442,-693.89683839,0.00018,2]
[393358968,1762522241457,-1972.29999997,0.00018,2]
[393358969,1762522241476,-259.20438134,0.000179,2]
[393358970,1762522241486,-23097.26346736,0.00018,2]
[393358971,1762522241923,-423.11794635,0.00017938,2]
[393358972,1762522241938,-76.88205365,0.00017938,2]
[393358973,1762522241947,-856.38644965,0.00018,2]
[393358974,1762522241961,-501.498,0.00018,2]
[393358975,1762522241973,-3785.80988811,0.00018,2]
[393358976,1762522241984,-539.0,0.00018,2]
[393358977,1762522242076,-4209.23353818,0.00018,2]
[393358978,1762522242087,-10049.9752,0.00018,2]
[393358979,1762522242118,-338.78600001,0.00018,2]
[393358980,1762522242129,-3350.1,0.00018,2]
[393358981,1762522242140,-80502.21525861,0.00018,2]
[393358982,1762522242151,-332.57952245,0.00018,2]
[393358998,1762522242748,-2385.19,0.000173,2]
[393359001,1762522242759,-114.81,0.000173,2]
[393359004,1762522242768,-394.1633772,0.00017367,2]
[393359006,1762522242777,-150.0,0.0001739,2]
[393359008,1762522242785,-150.0,0.00017527,2]
[393359010,1762522242794,-150.0,0.00017664,2]
[393359012,1762522242803,-150.0,0.00017801,2]
[393359014,1762522242812,-150.0,0.00017938,2]
[393359016,1762522242821,-900.2146878,0.00018,2]
[393359026,1762522245864,-532.13399778,0.00018,2]
[393359027,1762522245875,-3279.95872359,0.00018,2]
[393359028,1762522245976,-101624.56817398,0.00018,2]
[393359029,1762522264179,-902629.25109201,0.00018,2]
[393359030,1762522264822,168.0,0.00018,3]
[393359031,1762522277587,158.0,0.000301,120]
[393359032,1762522294892,168.6,0.000301,120]
[393359040,1762522631185,570.95,0.00013699,2]
[393359042,1762522726762,2250.91847681,0.000179,3]
[393359043,1762522906308,-1390.02,0.00016399,2]
[393359044,1762522906333,-175.40842315,0.000164,2]
[393359045,1762522906357,-983.82,0.00016438,2]
[393359046,1762522906380,-1000.0,0.000165,2]
[393359047,1762522906403,-300.0,0.00016531,2]
[393359049,1762523105473,1852.42,0.00016528,2]
[393359050,1762523155715,323.16,0.00016493,2]
[393359075,1762523380971,-300.00138342,0.00016708,2]
[393359083,1762523431955,-326.259078,0.00016624,2]
[393359084,1762523431965,-969.05544408,0.00016708,2]
[393359085,1762523431976,-646.62018074,0.00016708,2]
[393359086,1762523432016,-1016.8396099,0.00016708,2]
[393359087,1762523432027,-368.48305192,0.00016708,2]
[393359088,1762523432036,-305.0,0.00016708,2]
[393359089,1762523432046,-175.40842314,0.00016731,2]
[393359090,1762523432055,-2751.0,0.00016808,2]
[393359091,1762523432064,-195.0,0.00016831,2]
[393359092,1762523432073,-150.0,0.00016855,2]
[393359093,1762523432083,-1200.0,0.00016985,2]
[393359094,1762523432092,-1209.22594889,0.00016986,2]
[393359095,1762523432103,-800.0,0.00016986,2]
[393359096,1762523432119,-316.77405111,0.00016986,2]
[393359097,1762523432128,-72.04510127,0.00016995,2]
[393359098,1762523432139,-94.63489873,0.00016995,2]
[393359099,1762523432148,-250.0,0.00017,2]
[393359100,1762523432158,-152.07,0.00017041,2]
[393359101,1762523432167,-300.0,0.00017196,2]
[393359102,1762523432176,-300.0,0.00017196,2]
[393359103,1762523432185,-300.0,0.00017197,2]
[393359104,1762523432194,-244.0,0.00017197,2]
[393359106,1762523432203,-550.0,0.00017199,2]
[393359108,1762523432212,-1608.86492559,0.000172,2]
[393359110,1762523432221,-13596.65396829,0.000172,2]
[393359112,1762523432230,-315.33070176,0.000172,2]
[393359113,1762523432242,-1000.0,0.000172,2]
[393359114,1762523432251,-2500.0,0.000172,2]
[393359116,1762523432262,-161.47911157,0.000172,2]
[393359118,1762523432271,-5000.0,0.00017256,2]
[393359120,1762523432281,-697.68676596,0.00017266,2]
[393359122,1762523432290,-9999.99,0.00017266,2]
[393359123,1762523432300,-150.99,0.00017266,2]
[393359124,1762523432310,-500.0,0.00017273,2]
[393359126,1762523432319,-500.0,0.00017273,2]
[393359127,1762523432329,-500.0,0.00017273,2]
[393359128,1762523432339,-648.2935781,0.00017273,2]
[393359129,1762523432348,-500.0,0.00017273,2]
[393359130,1762523432357,-170.18333266,0.00017273,2]
[393359132,1762523432366,-500.0,0.00017273,2]
[393359134,1762523432376,-500.0,0.00017273,2]
[393359136,1762523432385,-500.0,0.00017273,2]
[393359138,1762523432395,-500.0,0.00017273,2]
[393359140,1762523432404,-500.0,0.00017273,2]
[393359142,1762523432413,-500.0,0.00017273,2]
[393359144,1762523432422,-500.0,0.00017273,2]
[393359146,1762523432431,-500.0,0.00017273,2]
[393359147,1762523432441,-193.32739619,0.00017277,2]
[393359148,1762523432450,-495.51437203,0.00017277,2]
[393359149,1762523432459,-500.0,0.00017277,2]
[393359150,1762523432468,-500.0,0.00017277,2]
[393359151,1762523432478,-500.0,0.00017277,2]
[393359152,1762523432488,-500.0,0.00017277,2]
[393359153,1762523432497,-500.0,0.00017277,2]
[393359154,1762523432507,-500.0,0.00017277,2]
[393359155,1762523432517,-500.0,0.00017277,2]
[393359156,1762523432526,-500.0,0.00017277,2]
[393359157,1762523432536,-500.0,0.00017277,2]
[393359158,1762523432546,-500.0,0.00017277,2]
[393359159,1762523432555,-500.0,0.00017277,2]
[393359160,1762523432565,-240.70960931,0.00017277,2]
[393359161,1762523432574,-500.0,0.00017277,2]
[393359162,1762523432585,-500.0,0.00017277,2]
[393359163,1762523432594,-500.0,0.00017277,2]
[393359164,1762523432604,-169.54846975,0.00017277,2]
[393359165,1762523432613,-500.0,0.00017277,2]
[393359166,1762523432622,-500.0,0.00017277,2]
[393359167,1762523432632,-1608.86492555,0.00017278,2]
[393359168,1762523432641,-13596.65396821,0.00017278,2]
[393359169,1762523432650,-315.33070176,0.00017278,2]
[393359170,1762523432660,-171.71921447,0.0001729,2]
[393359171,1762523432669,-151.0,0.0001729,2]
[393359172,1762523432678,-151.0,0.0001729,2]
[393359173,1762523432687,-151.0,0.0001729,2]
[393359174,1762523432697,-151.0,0.0001729,2]
[393359175,1762523432706,-151.0,0.0001729,2]
[393359176,1762523432715,-151.0,0.0001729,2]
[393359177,1762523432724,-151.0,0.0001729,2]
[393359178,1762523432733,-151.0,0.0001729,2]
[393359179,1762523432744,-151.0,0.0001729,2]
[393359180,1762523432753,-151.0,0.0001729,2]
[393359181,1762523432762,-151.0,0.0001729,2]
[393359182,1762523432772,-151.0,0.0001729,2]
[393359183,1762523432781,-151.0,0.0001729,2]
[393359184,1762523432795,-151.0,0.0001729,2]
[393359185,1762523432804,-151.0,0.0001729,2]
[393359186,1762523432814,-151.0,0.0001729,2]
[393359187,1762523432823,-151.0,0.0001729,2]
[393359188,1762523432832,-151.0,0.0001729,2]
[393359189,1762523432841,-151.0,0.0001729,2]
[393359190,1762523432851,-151.0,0.0001729,2]
[393359191,1762523432865,-151.0,0.0001729,2]
[393359192,1762523432880,-151.0,0.0001729,2]
[393359193,1762523432893,-151.0,0.0001729,2]
[393359194,1762523432904,-151.0,0.0001729,2]
[393359195,1762523432914,-151.0,0.0001729,2]
[393359196,1762523432925,-261.92709679,0.0001729,2]
[393359197,1762523432937,-151.0,0.0001729,2]
[393359198,1762523432952,-151.0,0.0001729,2]
[393359199,1762523432964,-702.61154506,0.00017298,2]
[393359200,1762523432976,-394.91077848,0.00017299,2]
[393359201,1762523432989,-500.0,0.00017299,2]
[393359202,1762523433001,-500.0,0.00017299,2]
[393359203,1762523433013,-344.30238573,0.00017299,2]
[393359204,1762523433025,-255.92867719,0.00017299,2]
[393359205,1762523433036,-500.0,0.00017299,2]
[393359206,1762523433046,-500.0,0.00017299,2]
[393359207,1762523433057,-500.0,0.00017299,2]
[393359208,1762523433070,-500.0,0.00017299,2]
[393359209,1762523433081,-500.0,0.00017299,2]
[393359210,1762523433093,-500.0,0.00017299,2]
[393359211,1762523433106,-500.0,0.00017299,2]
[393359212,1762523433118,-500.0,0.00017299,2]
[393359213,1762523433131,-500.0,0.00017299,2]
[393359214,1762523433143,-460.0,0.00017299,2]
[393359215,1762523433155,-642.66,0.00017299,2]
[393359216,1762523433167,-500.0,0.00017299,2]
[393359217,1762523433180,-500.0,0.00017299,2]
[393359218,1762523433192,-460.0,0.00017299,2]
[393359219,1762523433203,-500.0,0.00017299,2]
[393359220,1762523433216,-737.1013,0.000173,2]
[393359221,1762523433227,-63254.37789693,0.000173,2]
[393359222,1762523433243,-19154.83940779,0.000173,2]
[393359223,1762523433257,-106284.2996141,0.000173,2]
[393359224,1762523433304,-1993.96720213,0.000173,2]
[393359226,1762523437916,-5552.51701183,0.000173,2]
[393359227,1762523437930,-24232.48000001,0.000173,2]
[393359228,1762523437974,-500.99999993,0.000173,2]
[393359233,1762523440119,-298.51436949,0.000173,2]
[393359234,1762523440131,-1363.68834929,0.000173,2]
[393359235,1762523440142,-14896.46297549,0.000173,2]
[393359236,1762523440153,-3829.98099585,0.000173,2]
[393359237,1762523440164,-11225.73384333,0.000173,2]
[393359238,1762523440175,-11430.0,0.000173,2]
[393359239,1762523440186,-686.52447357,0.000173,2]
[393359240,1762523440197,-3547.5,0.000173,2]
[393359241,1762523440246,-2518.0981566,0.000173,2]
[393359242,1762523440265,-800.49634291,0.000173,2]
[393359250,1762523443049,-3121.54724532,0.000173,2]
[393359251,1762523443106,-7436.56215345,0.000173,2]
[393359252,1762523443192,-265.58581123,0.000173,2]
[393359287,1762523446286,-736.64384478,0.000173,2]
[393359288,1762523446346,-1080.12898,0.000173,2]
[393359289,1762523446357,-14067.86480158,0.000173,2]
[393359290,1762523446417,-1408.90569754,0.000173,2]
[393359291,1762523446483,-5025.471159,0.000173,2]